[Event "Sautron op 13th"]
[Site "Sautron"]
[Date "2013.10.30"]
[Round "6"]
[White "Migot, Tangi"]
[Black "Bailet, Pierre"]
[Result "1/2-1/2"]
[ECO "B58"]
[WhiteElo "2354"]
[BlackElo "2474"]
[Annotator "RR"]
[PlyCount "54"]
[EventDate "2013.10.26"]
[EventType "swiss"]
[EventRounds "9"]
[EventCountry "FRA"]
[SourceTitle "EXT 2016"]
[Source "ChessBase"]
[SourceDate "2015.10.08"]
[SourceVersion "1"]
[SourceVersionDate "2015.10.08"]
[SourceQuality "1"]
[TimeControl "40/5400+30:1800+30"]
[WhiteClock "1:30:00"]
[BlackClock "1:30:00"]

1. e4 {[%emt 0:00:17]} c5 {[%emt 0:00:00]} 2. Nf3 {[%emt 0:00:17]} Nc6 {
[%emt 0:00:18]} 3. d4 {[%emt 0:01:09]} cxd4 {[%emt 0:00:18]} 4. Nxd4 {[%emt 0:
00:04]} Nf6 {[%emt 0:00:14]} 5. Nc3 {[%emt 0:00:07]} d6 {[%emt 0:00:25]} 6. Be2
{[%emt 0:03:08]} Nxd4 {[%emt 0:03:44]} (6... e5 {La grande ligne}) 7. Qxd4 {
[%emt 0:00:09]} g6 {[%emt 0:00:18][%cal Gf8g7,Gg7d4]} 8. g4 $1 {[%emt 0:11:12]}
(8. e5 dxe5 9. Qxe5 Bg7 10. O-O O-O 11. Rd1 Qb6 12. Be3 Qe6 13. Qb5 Bd7 14. Qb3
Rfc8 15. Qxe6 fxe6 16. Rd2 Bc6 17. Bc4 Bd5 18. Nxd5 Rxc4 19. Nxf6+ Bxf6 20. c3
b5 21. Rad1 Kf7 22. Kf1 a5 23. Rd8 Ra6 24. Bd4 e5 25. Be3 b4 26. Bd2 bxc3 27.
Bxc3 a4 28. a3 g5 29. h3 h5 30. Ke2 Rb6 31. R1d2 h4 32. R8d5 g4 33. Kd3 gxh3
34. gxh3 Rf4 35. Kc2 Rc6 36. Kb1 Ke6 37. Ra5 Rd6 {Fernandez Garcia,J (2419)
-Matnadze,A (2422) Don Benito 2012 0-1}) (8. Bb5+ Bd7 9. Bxd7+ Qxd7 10. Bg5 Bg7
11. Nd5 Nh5 12. Qb4 e6 13. Nf4 $13) (8. O-O Bg7) 8... h6 {[%emt 0:04:08]} 9.
Be3 {[%emt 0:12:04]} (9. Bb5+ Bd7 10. Bxd7+ Qxd7 11. f3 Bg7 12. Be3 O-O 13. Qd2
Kh7 (13... h5 {Massoni,M (2338)-Delorme,A (2293) Breizh Masters 2011 (7) 1/2})
14. h4) 9... Bg7 {[%emt 0:03:15]} 10. Rg1 $146 {[%emt 0:00:55] Probablement
une préparation maison des Blancs qui ont joué vite cette nouveauté.} (10.
f3 O-O 11. Qd2 {Michiels,B (2304)-Berthelot,Y (2311) Breizh Masters 1st 2003 
(5) 1/2}) 10... Be6 {[%emt 0:07:33]} 11. f4 {[%emt 0:06:04]} O-O {[%emt 0:17:
16]} 12. Qd2 {[%emt 0:00:44][%cal Gf4f5,Ge3h6]} b5 $1 {[%emt 0:02:58] Anticipe
le ooo des Blancs} 13. Bxb5 {[%emt 0:10:37]} (13. f5 b4 $13 {[%csl Re4]}) 13...
Rc8 {[%emt 0:03:26]} (13... Rb8 14. f5 (14. Bxa7 $2 Nxe4)) 14. f5 {[%emt 0:06:
15]} Rxc3 $1 {[%emt 0:04:54]} 15. Qxc3 {[%emt 0:02:09]} Nd5 $1 {[%emt 0:02:09]}
16. Qb3 {[%emt 0:08:01]} Nxe3 {[%emt 0:01:40]} 17. fxe6 {[%emt 0:00:52]} Nxc2+
{[%emt 0:14:46]} 18. Qxc2 {[%emt 0:03:05]} Qa5+ {[%emt 0:00:12] La pointe de
la combinaison} 19. Kf1 {[%emt 0:04:02]} Qxb5+ {[%emt 0:05:23]} 20. Kg2 {
[%emt 0:00:07]} fxe6 {[%emt 0:00:35]} 21. Rgf1 {[%emt 0:01:30]} Rb8 {[%emt 0:
01:39]} 22. Rf2 {[%emt 0:03:46]} Bd4 {[%emt 0:02:00]} 23. Rd2 {[%emt 0:01:15]}
Qe5 {[%emt 0:08:10]} 24. Rf1 {[%emt 0:01:45]} Kg7 {[%emt 0:00:14]} 25. b3 {
[%emt 0:03:45]} Bc5 $44 {[%emt 0:06:42][%csl Re4,Rg2,Rg4]} 26. Qb2 {[%emt 0:04:
59]} Qxb2 {[%emt 0:00:05]} 27. Rxb2 {[%emt 0:00:04]} Rb4 {[%emt 0:00:15]}
1/2-1/2